bitfinex/quotes_ETHUSD_20260108
["timestamp","ask_amount","ask_price","bid_price","bid_amount"]
[1767852343886,1.02200668,3132.9,3131.0,4.29394959]
[1767852344094,1.02200668,3132.9,3131.1,0.42939496]
[1767852344095,0.837,3132.8,3131.1,0.42939496]
[1767852344302,1.85900668,3132.8,3131.1,0.42939496]
[1767852344514,1.02200668,3132.7,3131.1,0.42939496]
[1767852344820,1.85900668,3132.6,3131.0,6.38770706]
[1767852345126,1.02200668,3132.6,3131.0,6.38770706]
[1767852345271,1.02200668,3133.1,3131.1,1.1001103]
[1767852345470,1.02200668,3132.9,3131.0,6.38770706]
[1767852346005,6.38263922,3133.5,3130.5,3.19437617]
[1767852346006,1.02200668,3132.4,3130.5,3.19437617]
[1767852346210,1.02200668,3132.2,3130.6,3.19426249]
[1767852346812,1.02200668,3132.0,3130.6,3.19426249]
[1767852347107,0.837,3131.9,3130.6,6.38853834]
[1767852347285,1.02200668,3132.4,3130.6,3.19426249]
[1767852347477,1.02200668,3132.2,3130.6,3.19426249]
[1767852347795,1.20790735,3132.1,3130.6,3.19426249]
[1767852348107,0.837,3132.0,3130.3,1.1001103]
[1767852348324,3.26499658,3133.3,3130.3,1.1001103]
[1767852348325,1.02200668,3132.2,3130.3,1.1001103]
[1767852348534,1.85900668,3132.2,3130.3,1.1001103]
[1767852348815,1.85900668,3132.2,3129.6,3.19522629]
[1767852348816,1.02200668,3131.5,3128.9,1.1001103]
[1767852348998,1.02200668,3131.5,3128.5,1.25282214]
[1767852348999,1.02200668,3130.9,3128.5,1.25282214]
[1767852349203,1.01900668,3130.5,3128.5,1.25282214]
[1767852349416,0.837,3130.4,3128.6,1.1001103]
[1767852349617,1.02200668,3130.4,3128.6,1.1001103]
[1767852349927,1.02200668,3130.0,3128.5,1.25282214]
[1767852350073,3.19469217,3130.2,3128.5,4.4492144]
[1767852350277,0.837,3130.3,3128.6,1.1001103]
[1767852350485,7.4103602,3130.7,3128.6,1.1001103]
[1767852350709,1.02200668,3130.5,3128.6,1.1001103]
[1767852350908,1.20790735,3130.4,3128.6,1.1001103]
[1767852351093,0.837,3130.3,3128.6,1.1001103]
[1767852351285,1.02200668,3130.2,3128.5,4.44920807]
[1767852351496,1.0954586,3130.0,3128.5,1.25282214]
[1767852351709,1.02200668,3129.8,3128.5,1.25282214]
[1767852351900,1.02200668,3129.8,3127.5,4.29751205]
[1767852351901,0.07345192,3129.3,3127.5,4.29749442]
[1767852352126,0.07345192,3130.0,3126.4,3.19856422]
[1767852352127,0.76403335,3130.2,3129.3,0.002]
[1767852352425,0.76403335,3130.2,3128.5,3.19642]
[1767852352426,0.838,3130.1,3128.5,3.19642]
[1767852352732,3.19379023,3131.1,3127.6,3.70045322]
[1767852352733,0.78660906,3129.7,3127.6,0.42974944]
[1767852352895,0.78660906,3129.7,3127.2,1.1001103]
[1767852352896,0.78660906,3129.5,3127.9,3.19697019]
[1767852353098,0.838,3129.4,3128.2,3.19671713]
[1767852353289,0.838,3129.4,3127.6,1.1001103]
[1767852353492,0.838,3129.4,3127.4,3.19747854]
[1767852353493,0.18590067,3130.4,3128.6,1.1001103]
[1767852353752,0.78660906,3130.6,3128.6,1.1001103]
[1767852353888,0.838,3130.5,3128.8,1.1001103]
[1767852354090,0.838,3130.5,3128.3,1.1001103]
[1767852354091,0.80894301,3130.4,3128.3,1.1001103]
[1767852354397,0.80894301,3130.4,3126.0,0.63308556]
[1767852354398,0.80894301,3129.8,3127.3,1.1001103]
[1767852354606,0.23345192,3129.9,3127.7,1.1001103]
[1767852354607,0.80894301,3129.6,3127.7,1.1001103]
[1767852354789,0.23345192,3129.9,3127.7,1.1001103]
[1767852354790,1.0026943,3129.5,3128.1,3.196782]
[1767852354990,1.0026943,3129.5,3127.9,3.19695664]
[1767852355290,1.0026943,3129.5,3128.0,3.19691677]
[1767852355407,0.1646943,3129.5,3127.8,1.1001103]
[1767852355604,0.07345192,3129.9,3127.7,0.838]
[1767852355605,0.838,3129.6,3128.0,1.1001103]
[1767852355796,0.838,3129.6,3127.7,0.838]
[1767852355797,0.88239493,3130.1,3128.6,6.39262259]
[1767852356002,0.838,3130.0,3128.5,7.4929503]
[1767852356524,0.07345192,3130.7,3128.6,1.1001103]
[1767852356732,0.07345192,3131.7,3128.6,1.1001103]
[1767852356733,3.26685574,3131.5,3128.9,1.1001103]
[1767852356928,0.838,3131.2,3129.1,1.1001103]
[1767852357130,0.4119663,3131.4,3129.1,1.1001103]
[1767852357332,0.838,3131.5,3129.1,1.17356222]
[1767852357536,1.13370593,3132.1,3129.6,1.1001103]
[1767852357739,0.838,3131.7,3129.8,1.1001103]
[1767852357902,7.5192438,3132.1,3129.8,1.1001103]
[1767852358102,0.89563993,3131.8,3130.0,1.1001103]
[1767852358307,0.89563993,3131.8,3129.5,1.1001103]
[1767852358308,0.89563993,3131.6,3129.5,1.1001103]
[1767852358866,0.89563993,3131.6,3128.6,0.07345192]
[1767852358869,0.07345192,3131.1,3128.1,3.19680834]
[1767852359056,0.91666721,3130.6,3128.5,1.1001103]
[1767852359260,0.07345192,3130.7,3128.4,3.19650472]
[1767852359261,0.91666721,3130.1,3128.4,3.19650472]
[1767852359425,0.07345192,3130.4,3128.0,1.1001103]
[1767852359426,1.75466721,3130.0,3128.3,3.19654329]
[1767852359620,1.01346672,3129.9,3128.4,1.41976463]
[1767852359852,0.838,3129.9,3128.4,1.1001103]
[1767852360020,4.13205494,3130.3,3128.5,3.19641165]
[1767852360222,0.07345192,3130.7,3128.6,1.1001103]
[1767852360533,1.77546496,3130.8,3128.6,1.1001103]
[1767852360732,0.95805382,3130.0,3127.6,1.1001103]
[1767852360925,0.07345192,3130.1,3126.4,3.1985315]
[1767852360926,0.95805382,3128.6,3126.4,1.1001103]
[1767852361129,0.95805382,3128.4,3126.5,3.19844859]
[1767852361344,0.18695057,3128.3,3126.8,1.1001103]
[1767852361629,0.07345192,3129.4,3127.1,1.1001103]
[1767852361630,0.95805382,3129.4,3127.1,1.1001103]
[1767852362123,0.99852155,3129.2,3127.1,6.39562439]
[1767852362359,0.838,3129.1,3127.2,1.31247625]
[1767852362571,0.99852155,3129.0,3126.7,1.31247625]
[1767852362728,0.99852155,3129.0,3124.4,1.31247625]
[1767852362729,1.01840645,3128.1,3124.4,1.31247625]
[1767852363078,0.16,3128.2,3126.1,0.76247625]
[1767852363079,1.01840645,3128.2,3126.1,0.76247625]
[1767852363381,0.26444927,3128.9,3126.4,1.30361349]
[1767852363382,0.838,3128.1,3126.4,1.30361349]
[1767852363664,1.43724645,3128.7,3126.7,3.19822567]
[1767852363873,1.43724645,3128.7,3126.8,0.31982257]
[1767852364180,0.26444927,3128.9,3126.9,2.14161349]
[1767852364181,0.19099735,3128.9,3126.9,2.14161349]
[1767852364454,1.43724645,3129.1,3126.9,1.30361349]
[1767852364654,0.07345192,3128.8,3126.9,1.30361349]
[1767852364860,0.07345192,3129.0,3127.1,1.30361349]
[1767852365067,0.07345192,3129.0,3126.6,1.30361349]
[1767852365068,0.07345192,3128.2,3126.6,1.30361349]
[1767852365380,0.07345192,3128.8,3125.4,0.23345192]
[1767852365381,0.07345192,3129.3,3126.9,1.30361349]
[1767852365542,0.001,3129.7,3127.7,1.30361349]
[1767852365744,0.001,3129.7,3128.1,1.30361349]
[1767852366038,0.07345192,3131.3,3129.2,1.30361349]
[1767852366245,0.838,3131.6,3129.4,1.30361349]
[1767852366434,1.51069837,3131.5,3129.3,0.838]
[1767852366645,0.23486984,3131.4,3129.4,1.30361349]
[1767852366825,0.07345192,3131.9,3129.4,1.30361349]
[1767852367021,0.07345192,3131.9,3129.4,1.37706541]
[1767852367022,3.26644219,3131.9,3129.4,1.37706541]
[1767852367225,3.26644219,3131.9,3129.4,1.30361349]
[1767852367226,1.43724645,3131.8,3129.4,1.30361349]
[1767852367549,1.51069837,3131.7,3129.5,0.838]
[1767852367726,1.51069837,3131.7,3129.1,3.1958071]
[1767852367727,0.07345192,3131.3,3129.1,3.1958071]
[1767852367932,0.07345192,3131.1,3129.1,4.0338071]
[1767852368172,3.42865881,3131.0,3129.1,3.1958071]
[1767852368550,0.07345192,3130.5,3128.2,1.30361349]
[1767852368734,0.07345192,3130.5,3128.5,3.19641354]
[1767852368939,0.07345192,3130.5,3128.6,3.19631688]
[1767852369132,0.07345192,3130.5,3128.2,2.14161349]
[1767852369365,0.07345192,3130.5,3129.0,3.1959039]
[1767852369576,0.07345192,3130.5,3128.3,1.51777484]
[1767852369862,1.51069837,3130.5,3128.4,0.838]
[1767852370027,0.07345192,3130.1,3127.9,3.19700876]
[1767852370233,0.07345192,3130.3,3128.4,3.19652218]
[1767852370451,0.837,3130.2,3128.5,0.31965222]
[1767852371660,0.07345192,3130.5,3128.6,2.14161349]
[1767852371862,1.51069837,3130.3,3128.4,3.19647934]
[1767852372168,0.07345192,3130.5,3128.6,1.30361349]
[1767852372734,6.46222484,3130.5,3128.4,3.19647934]
[1767852373067,3.19427585,3130.6,3128.4,7.69661501]
[1767852373289,0.837,3130.4,3128.4,8.53461501]
[1767852373485,0.837,3130.4,3128.4,4.50009283]
[1767852373663,0.07345192,3130.3,3128.1,0.838]
[1767852374035,0.07345192,3130.3,3128.5,1.30361349]
[1767852374238,0.837,3130.2,3128.5,1.30361349]
[1767852374463,0.32677278,3130.5,3128.7,1.30361349]
[1767852374772,0.837,3130.8,3128.9,1.30361349]
[1767852374940,0.837,3131.0,3128.9,1.30361349]
[1767852376171,0.837,3131.0,3129.1,1.30361349]
[1767852376545,0.07345192,3131.5,3129.1,1.37706541]
[1767852376736,0.001,3131.1,3129.1,1.37706541]
[1767852376942,0.001,3131.1,3129.3,1.30361349]
[1767852377140,0.001,3131.1,3129.5,1.30361349]
[1767852377450,0.001,3131.1,3129.1,0.07345192]
[1767852377451,0.001,3131.1,3129.7,1.30361349]
[1767852378170,0.001,3131.1,3129.9,1.30361349]
[1767852378555,0.001,3131.1,3129.6,0.838]
[1767852378866,0.001,3131.1,3129.6,3.19526852]
[1767852379072,0.838,3131.1,3129.3,3.19550846]
[1767852379272,0.838,3131.1,3129.0,3.19590132]
[1767852379456,0.07345192,3130.6,3128.8,0.002]
[1767852379855,0.837,3130.5,3128.8,1.30561349]
[1767852380084,6.38895986,3130.4,3128.8,1.30561349]
[1767852380395,0.72259599,3130.3,3128.9,1.30361349]
[1767852380539,0.07345192,3130.8,3128.8,0.002]
[1767852380540,0.837,3130.4,3128.8,0.002]
[1767852381598,3.19482612,3131.1,3129.5,1.30361349]
[1767852381764,0.001,3131.1,3129.5,1.30361349]
[1767852381960,0.837,3131.0,3129.5,1.30361349]
[1767852382349,0.837,3131.0,3129.5,4.49898801]
[1767852382562,0.001,3131.1,3129.6,1.30361349]
[1767852383165,0.001,3131.1,3129.6,1.37706541]
[1767852383366,0.001,3131.1,3129.9,1.30361349]
[1767852383677,0.001,3131.1,3130.1,1.30361349]
[1767852384070,0.001,3131.1,3129.5,8.98228543]
[1767852384384,0.001,3131.1,3129.6,1.91646417]
[1767852384589,0.001,3131.1,3129.7,1.30361349]
[1767852384995,0.001,3131.1,3129.7,2.14161349]
[1767852385351,0.001,3131.1,3129.7,1.30361349]
[1767852386116,0.001,3131.1,3129.9,1.30361349]
[1767852386270,0.001,3131.1,3129.8,3.19509233]
[1767852386676,0.001,3131.1,3129.7,3.19516329]
[1767852386869,0.001,3131.1,3129.5,4.49891004]
[1767852387089,0.001,3131.1,3129.8,1.30361349]
[1767852387697,0.001,3131.1,3129.9,0.838]
[1767852388092,0.001,3131.1,3130.1,3.1947861]
[1767852388298,0.001,3131.1,3130.1,4.49839959]
[1767852388466,0.001,3131.1,3130.1,1.30361349]
[1767852388668,0.001,3130.8,3130.1,1.30361349]
[1767852389664,0.001,3131.1,3130.3,1.30361349]
[1767852390268,5.75281049,3133.4,3130.5,1.30361349]
[1767852390472,4.6295011,3132.6,3130.5,1.30361349]
[1767852390671,7.82175575,3132.6,3130.6,2.14161349]
[1767852391205,4.6295011,3132.6,3130.6,2.14161349]
[1767852391378,0.54665011,3132.5,3130.7,0.21416135]
[1767852391578,1.43724645,3132.6,3130.7,0.21416135]
[1767852391579,7.8217664,3132.6,3130.7,0.21416135]
[1767852391978,4.62948293,3132.6,3130.7,0.21416135]
[1767852392174,4.62948293,3132.6,3130.7,1.79956804]
[1767852392375,1.62678484,3132.6,3130.7,3.40832704]
[1767852392614,1.62678484,3132.4,3130.3,1.58540669]
[1767852392788,1.62678484,3132.4,3130.7,3.1941145]
[1767852392993,1.62678484,3132.4,3130.6,4.77965924]
[1767852393191,0.837,3132.5,3130.7,4.77957896]
[1767852393594,0.837,3132.5,3130.7,7.97375278]
[1767852393796,0.837,3132.5,3130.8,1.58540669]
[1767852394406,7.22181844,3132.5,3130.8,1.58540669]
[1767852394917,4.02940922,3132.5,3130.8,4.77947094]
[1767852395284,4.02940922,3132.5,3130.3,3.19453977]
[1767852395285,1.62678484,3132.4,3130.3,1.58540669]
[1767852395606,1.62678484,3132.2,3130.3,4.77992406]
[1767852395810,1.62678484,3132.2,3130.3,1.58540669]
[1767852396303,1.62678484,3132.2,3130.3,4.77994924]
[1767852396304,6.38549216,3132.1,3130.3,4.77994924]
[1767852396513,8.012277,3132.1,3130.3,1.58540669]
[1767852396708,8.012277,3132.1,3128.8,0.002]
[1767852396709,1.62678484,3132.0,3129.8,1.58540669]
[1767852396910,9.57823824,3132.1,3129.8,5.6184279]
[1767852396911,1.62678484,3131.8,3129.8,5.6184279]
[1767852397115,0.837,3131.7,3129.9,3.19497304]
[1767852397509,0.837,3131.7,3129.9,3.19496473]
[1767852397710,0.03559071,3131.6,3129.8,2.42340669]
[1767852398231,0.03559071,3131.6,3129.9,1.58540669]
[1767852398432,0.03559071,3131.6,3130.3,1.58540669]
[1767852398729,0.03559071,3131.6,3130.4,1.58540669]
[1767852399104,0.000763,3131.6,3130.4,1.58540669]
[1767852399329,0.837,3132.3,3131.1,1.58540669]
[1767852399624,0.837,3132.3,3131.2,1.58540669]
[1767852399811,0.837,3132.3,3131.2,1.82774736]
[1767852400006,0.837,3132.3,3131.2,1.82196596]
[1767852400194,0.07345192,3133.4,3131.2,1.82196596]
[1767852400397,0.001,3131.7,3131.4,1.58540669]
[1767852400602,0.837,3133.3,3131.4,1.58540669]
[1767852400824,0.837,3133.3,3131.6,1.58540669]
[1767852401029,1.62678484,3133.2,3131.1,1.58540669]
[1767852401230,1.62678484,3133.2,3131.2,3.19364093]
[1767852401413,1.62678484,3133.2,3131.2,4.77904762]
[1767852401597,1.62678484,3133.2,3131.2,4.77906758]
[1767852401797,1.87316332,3133.1,3131.2,1.58540669]
[1767852402022,1.87316332,3133.1,3130.9,0.838]
[1767852402226,1.87316332,3133.1,3130.8,0.838]
[1767852402430,1.87316332,3133.1,3130.7,4.77954841]
[1767852402431,1.62678484,3132.7,3130.7,4.77954841]
[1767852402636,1.95728829,3132.6,3130.7,4.77954841]
[1767852402809,1.12028829,3132.6,3130.7,1.58540669]
[1767852403011,0.837,3132.5,3130.7,1.58540669]
[1767852403217,1.62678484,3132.4,3130.2,1.58540669]
[1767852403604,1.62678484,3132.4,3130.3,3.19458122]
[1767852403803,1.62678484,3132.2,3130.2,1.58540669]
[1767852404030,1.62678484,3132.2,3130.2,4.7800808]
[1767852404331,1.62678484,3132.2,3130.4,3.19441334]
[1767852404522,7.22249216,3132.1,3130.3,4.77991531]
[1767852404730,4.02974608,3132.1,3130.3,7.97449729]
[1767852404931,0.56565309,3132.0,3130.3,7.97449729]
[1767852405244,0.56565309,3132.0,3130.4,1.65885861]
[1767852405537,0.837,3132.4,3130.6,1.58540669]
[1767852405712,1.62678484,3132.3,3130.6,1.58540669]
[1767852405913,1.62678484,3132.3,3130.5,0.838]
[1767852406099,1.62678484,3132.3,3130.4,0.838]
[1767852406516,6.38528828,3132.2,3130.4,4.03242221]
[1767852406716,0.80120731,3132.1,3130.4,4.03242221]
[1767852406918,0.80120731,3132.1,3130.3,1.58540669]
[1767852407119,0.80120731,3132.1,3130.4,3.19445029]
[1767852407937,0.80120731,3132.1,3130.3,1.58540669]
[1767852408250,0.71864956,3132.0,3130.4,3.19445513]
[1767852408445,0.71864956,3132.0,3130.4,4.77986182]
[1767852408643,3.9115871,3132.0,3130.4,4.77986182]
[1767852408841,7.10452464,3132.0,3130.4,1.58540669]
[1767852410342,1.62678484,3131.9,3130.1,0.002]
[1767852410546,6.38651168,3131.6,3130.1,0.002]
[1767852412420,3.19325584,3131.6,3130.1,0.002]
[1767852412851,3.19325584,3131.6,3130.1,1.58740669]
[1767852413037,0.837,3131.5,3130.1,1.58740669]
[1767852413245,0.40302558,3131.4,3130.2,0.838]
[1767852413536,0.837,3131.5,3130.2,0.838]
[1767852414050,0.837,3131.5,3130.2,2.42340669]
[1767852414622,0.837,3131.5,3130.2,1.58540669]
[1767852415152,0.837,3131.5,3130.2,4.78008695]
[1767852415343,0.837,3131.5,3130.3,2.14741539]
[1767852415575,0.837,3131.5,3130.4,1.58540669]
[1767852415987,3.19416715,3131.7,3130.4,1.58540669]
[1767852415988,0.001,3131.7,3130.4,1.58540669]
[1767852417070,0.001,3131.7,3130.6,1.58540669]
[1767852417266,0.001,3131.7,3130.8,1.58540669]
[1767852417474,0.001,3131.7,3130.7,0.838]
[1767852417475,0.001,3131.7,3131.0,1.58540669]
[1767852418985,0.001,3131.7,3130.9,0.24234067]
[1767852418986,0.001,3131.7,3131.2,1.58540669]
[1767852419989,1.62678484,3133.0,3131.2,1.58540669]
[1767852420186,0.837,3132.9,3131.2,1.58540669]
[1767852420376,1.62678484,3132.8,3131.2,1.58540669]
[1767852420881,1.62678484,3132.8,3130.8,1.58540669]
[1767852421066,1.62678484,3132.6,3130.8,1.58540669]
[1767852421468,1.62678484,3132.5,3130.3,1.58540669]
[1767852421682,1.62678484,3132.2,3130.1,0.002]
[1767852421874,1.62678484,3131.9,3130.1,0.002]
[1767852422373,1.62678484,3131.9,3130.3,1.67915693]
[1767852422571,0.836,3131.8,3130.3,1.67915693]
[1767852422770,1.8421362,3131.7,3130.1,0.002]
[1767852422971,1.68577717,3131.5,3130.1,0.002]
[1767852423172,2.49300606,3131.4,3130.1,0.002]
[1767852423590,0.80722889,3131.4,3130.1,1.83008573]
[1767852423891,0.836,3131.3,3130.1,1.83008573]
[1767852424691,0.836,3131.3,3130.4,0.002]
[1767852425595,0.836,3131.3,3130.4,1.83008573]
[1767852426172,0.836,3131.3,3130.4,0.002]
[1767852427097,0.837,3131.6,3130.4,1.83008573]
[1767852427296,0.837,3131.6,3130.4,2.0130943]
[1767852427818,1.68577717,3132.2,3130.5,1.82808573]
[1767852427969,0.837,3131.7,3130.5,1.82808573]
[1767852428395,0.837,3132.0,3130.5,1.82808573]
[1767852428594,0.837,3132.0,3130.4,6.57393845]
[1767852428595,1.68577717,3131.9,3130.4,0.002]
[1767852428785,1.93805489,3131.8,3130.4,0.002]
[1767852429393,0.837,3131.7,3130.4,3.19645863]
[1767852429702,4.03016983,3131.7,3130.4,1.83008573]
[1767852429897,0.837,3131.7,3130.4,1.83008573]
[1767852430265,4.03019133,3131.7,3130.4,1.83008573]
[1767852430476,0.40301913,3131.6,3130.4,1.83008573]
[1767852430679,0.40301913,3131.6,3130.4,0.002]
[1767852430906,0.40301913,3131.6,3130.4,3.1964555]
[1767852431111,0.837,3131.5,3130.4,5.02454123]
[1767852431404,0.837,3131.6,3130.5,1.82808573]
[1767852431906,3.19272622,3132.2,3130.6,1.82808573]
[1767852432101,0.837,3132.1,3130.6,1.82808573]
[1767852432306,4.87834178,3132.3,3130.7,1.82808573]
[1767852432307,0.40297262,3132.0,3130.7,1.82808573]
[1767852432504,0.07345192,3132.8,3130.7,1.82808573]
[1767852432505,0.837,3132.1,3130.7,1.82808573]
[1767852433208,0.837,3132.8,3130.9,1.82808573]
[1767852433508,0.837,3132.8,3131.1,1.82808573]
[1767852433710,1.68577717,3133.2,3131.3,1.82808573]
[1767852433711,4.8774132,3133.2,3131.3,1.82808573]
[1767852434007,0.837,3132.8,3131.5,1.82808573]
[1767852434909,0.837,3132.8,3131.6,1.82808573]
[1767852435679,0.837,3132.8,3131.7,3.19315387]
[1767852435885,0.837,3132.8,3131.8,1.82808573]
[1767852436513,0.837,3132.8,3131.6,3.19322906]
[1767852436714,0.837,3132.8,3131.5,3.19335537]
[1767852436909,0.837,3132.8,3131.5,3.19332746]
[1767852437114,0.837,3132.8,3131.6,3.19324907]
[1767852437584,0.001,3132.5,3131.6,3.19324907]
[1767852437785,1.68577717,3133.5,3132.1,1.82808573]
[1767852438044,1.68577717,3133.4,3131.6,2.66608573]
[1767852438193,1.68577717,3133.4,3131.6,1.82808573]
[1767852438392,1.68577717,3133.4,3131.7,1.82808573]
[1767852438995,0.836,3133.5,3131.7,1.82808573]
[1767852439195,0.836,3133.5,3131.9,1.82808573]
[1767852439824,0.836,3133.5,3132.1,1.82808573]
[1767852440006,0.836,3133.5,3132.3,1.82808573]
[1767852442014,0.836,3133.5,3132.5,1.82808573]
[1767852442419,2.02816589,3134.2,3132.5,1.82808573]
[1767852442619,0.836,3134.1,3132.7,1.82808573]
[1767852442813,0.836,3134.1,3132.8,1.82808573]
[1767852443834,1.68577717,3134.0,3132.7,0.838]
[1767852444141,3.19091228,3133.9,3132.7,0.838]
[1767852444305,2.49252796,3133.8,3132.4,1.82808573]
[1767852444506,1.68577717,3133.8,3132.1,4.03072603]
[1767852444704,1.68577717,3133.8,3132.1,5.85881176]
[1767852445006,1.68577717,3133.8,3132.2,1.82808573]
[1767852445212,1.68577717,3133.8,3132.4,3.19243082]
[1767852445423,0.48766894,3133.7,3132.5,0.31924308]
[1767852445630,0.48766894,3133.7,3132.5,5.33966101]
[1767852445833,2.17344611,3133.7,3132.5,0.31924308]
[1767852446330,2.17344611,3133.7,3132.5,3.51157392]
[1767852447027,1.68577717,3133.6,3132.5,0.31924308]
[1767852447227,1.68577717,3133.6,3132.2,3.19257845]
[1767852447525,1.68577717,3133.6,3132.3,3.19253157]
[1767852448531,1.68577717,3133.6,3132.1,6.38549175]
[1767852448733,1.68577717,3133.6,3132.1,8.21357748]
[1767852448899,1.68577717,3133.6,3132.2,1.82808573]
[1767852449107,2.17345896,3133.6,3132.2,1.82808573]
[1767852449603,0.48768179,3133.6,3132.2,1.82808573]
[1767852449801,6.38182456,3133.9,3132.2,1.82808573]
[1767852450005,0.001,3133.4,3132.2,1.82808573]
[1767852450201,0.001,3133.4,3132.4,1.82808573]
[1767852450637,0.001,3133.4,3132.2,0.837]
[1767852450840,0.001,3133.4,3132.2,2.66508573]
[1767852451048,1.68577717,3133.3,3131.7,1.82808573]
[1767852451337,1.68577717,3133.1,3131.5,2.66508573]
[1767852451507,1.68577717,3133.1,3131.8,5.02107]
[1767852451706,1.93805489,3133.2,3131.8,1.82808573]
[1767852452110,0.25227772,3133.2,3132.0,1.90838069]
[1767852452437,0.25227772,3133.2,3131.7,4.03007718]
[1767852452438,1.87398692,3133.3,3131.7,4.03007718]
[1767852452641,3.19162517,3133.2,3131.7,5.93845787]
[1767852453130,3.19162517,3133.2,3131.7,1.90838069]
[1767852453313,3.19162517,3133.2,3131.7,5.93850533]
[1767852453635,5.06561209,3133.2,3131.7,5.93850533]
[1767852453932,0.82571601,3133.1,3131.7,2.74538069]
[1767852454138,2.69970293,3133.1,3131.7,5.93851931]
[1767852454440,2.69970293,3133.1,3130.4,0.07545192]
[1767852454441,1.87398692,3133.0,3131.3,1.90838069]
[1767852454612,1.87398692,3133.0,3131.5,3.19329089]
[1767852454807,0.26997029,3132.9,3131.5,1.90838069]
[1767852456148,2.14395721,3132.9,3131.1,1.90838069]
[1767852456322,2.14395721,3132.9,3131.1,5.10207021]
[1767852456524,2.14395721,3132.9,3131.2,5.10203361]
[1767852456734,3.19223648,3132.6,3131.2,1.90838069]
[1767852457349,3.19223648,3132.6,3131.2,5.10201576]
[1767852457553,3.19223648,3132.6,3131.2,1.90838069]
[1767852457716,3.19223648,3132.6,3131.2,5.93903118]
[1767852458057,8.25845988,3132.6,3131.2,2.74538069]
[1767852458226,2.69983291,3132.5,3131.2,2.74538069]
[1767852458541,2.69983291,3132.5,3131.2,5.10201898]
[1767852458741,5.89217358,3132.5,3131.2,5.10201898]
[1767852459146,2.69983291,3132.5,3131.2,5.10201898]
[1767852459340,0.82584599,3132.5,3131.3,1.90838069]
[1767852459544,0.836,3133.0,3131.3,1.90838069]
[1767852459545,2.70998692,3133.0,3131.3,1.90838069]
[1767852459839,1.87398692,3132.9,3131.4,0.837]
[1767852460011,1.87398692,3132.9,3131.3,1.90838069]
[1767852460940,1.87398692,3132.7,3131.3,1.90838069]
[1767852461149,0.50660196,3132.6,3131.3,2.09921876]
[1767852461637,0.50660196,3132.6,3131.5,0.002]
[1767852461811,0.50760196,3132.6,3131.5,0.002]
[1767852463950,0.50760196,3132.6,3131.5,1.91038069]
[1767852465136,1.87398692,3132.5,3131.5,0.002]
[1767852465447,0.23815889,3132.4,3131.5,1.91038069]
[1767852465615,0.001,3132.6,3131.5,1.91038069]
[1767852465821,0.001,3132.6,3131.7,1.90838069]
[1767852466832,0.001,3133.4,3132.4,1.90838069]
[1767852467970,0.001,3133.4,3132.5,1.90838069]
[1767852468142,0.001,3133.4,3132.7,1.90838069]
[1767852468466,0.001,3133.4,3132.7,2.18301876]
[1767852468868,0.001,3133.4,3132.4,1.90838069]
[1767852469158,0.001,3133.4,3132.4,2.74538069]
[1767852469346,0.001,3133.4,3132.4,5.93778913]
[1767852469548,0.001,3133.4,3132.4,2.74538069]
[1767852470372,0.001,3133.4,3131.9,0.837]
[1767852470373,1.87498692,3133.4,3131.9,0.837]
[1767852470663,2.06148561,3133.3,3131.9,2.74538069]
[1767852471229,2.06148561,3133.3,3132.0,1.90838069]
[1767852471429,0.18749869,3133.3,3132.0,1.90838069]
[1767852471759,0.001,3133.4,3132.0,1.90838069]
[1767852472450,0.001,3133.4,3132.2,1.90838069]
[1767852474162,1.87498692,3133.4,3131.9,5.10131449]
[1767852474370,1.87498692,3133.4,3132.0,3.19282856]
[1767852474535,0.18749869,3133.3,3132.1,1.90838069]
[1767852474928,0.001,3133.1,3132.1,1.90838069]
[1767852475371,0.001,3133.1,3132.3,1.90838069]
[1767852476633,0.001,3133.1,3132.5,1.90838069]
[1767852478871,0.001,3133.4,3133.1,1.90838069]
[1767852479189,0.836,3134.3,3133.2,2.09921876]
[1767852479478,5.90029493,3134.5,3133.2,2.09921876]
[1767852479970,0.836,3134.5,3133.2,2.09921876]
[1767852480836,0.836,3134.5,3133.4,1.90838069]
[1767852482173,8.56311848,3137.0,3133.4,1.90838069]
[1767852482174,3.42645192,3135.9,3133.4,1.90838069]
[1767852482382,2.0003089,3135.7,3133.6,2.0079147]
[1767852482745,6.37836458,3135.6,3133.7,3.19111593]
[1767852482940,6.37836458,3135.6,3133.8,2.0079147]
[1767852482941,2.0003089,3135.5,3133.8,2.0079147]
[1767852484083,2.0003089,3135.5,3134.0,1.9003494]
[1767852484877,1.88968453,3135.3,3134.0,1.9003494]
[1767852485084,0.8268456,3135.2,3134.0,1.9003494]
[1767852485982,1.88968453,3135.4,3134.0,1.9003494]
[1767852486368,1.88968453,3135.4,3134.1,1.9003494]
[1767852486767,5.07880058,3135.7,3134.3,1.9003494]
[1767852488153,5.07880058,3135.7,3133.9,0.837]
[1767852488154,1.88968453,3135.6,3133.9,1.9003494]
[1767852488353,1.88968453,3135.4,3133.9,2.7373494]
[1767852488558,1.88968453,3135.4,3134.0,3.19079064]
[1767852488971,1.88968453,3135.3,3134.0,3.19079064]
[1767852489276,3.19048358,3135.4,3134.1,1.9003494]
[1767852489277,0.001,3135.4,3134.1,1.9003494]
[1767852489860,3.1904633,3135.4,3134.1,1.9003494]
[1767852490063,0.8269437,3135.3,3134.1,1.9003494]
[1767852490613,1.88968453,3135.2,3134.1,1.9003494]
[1767852491311,1.88968453,3135.0,3133.8,1.9003494]
[1767852493182,0.836,3135.1,3133.9,1.9003494]
[1767852493412,4.02569157,3135.1,3133.9,1.9003494]
[1767852493608,2.29225369,3135.0,3133.6,1.9003494]
[1767852494192,2.29225369,3135.0,3131.6,1.53163666]
[1767852494193,2.29225369,3135.0,3133.3,1.9003494]
[1767852494380,2.29225369,3135.0,3133.3,5.09180943]
[1767852494583,2.29225369,3135.0,3133.4,3.19142063]
[1767852494897,1.88968453,3134.8,3133.5,3.19131696]
[1767852495091,1.88968453,3134.8,3133.6,3.19118262]
[1767852495298,1.88968453,3134.8,3133.6,1.9003494]
[1767852495496,0.836,3134.7,3133.6,1.9003494]
[1767852497401,0.836,3134.7,3133.8,1.9003494]
[1767852498332,0.836,3134.7,3133.9,1.9003494]
[1767852499302,3.18951185,3135.3,3134.1,1.9003494]
[1767852499898,2.72668453,3135.4,3134.1,1.9003494]
[1767852499899,4.02642151,3135.4,3134.1,1.9003494]
[1767852500119,0.837,3135.4,3134.1,1.9003494]
[1767852500712,0.837,3135.4,3134.3,1.9003494]